[Event "Paul Kerese Mälestusfestival 2022 Välkturniir"]
[Site "Paul Kerese Mälestusfestival 2022 Kiirturniir"]
[Date "????.??.??"]
[Round "3.8"]
[White "Protassov, Vlad"]
[Black "Valdats, Reinis"]
[Result "1-0"]
[TimeControl "3 min + 2 sek iga käigu eest"]
[WhiteElo "1816"]
[BlackElo "1427"]

1. d4 {[%clk 00:03:03]} Nf6 {[%clk 00:03:04]} {[%emt 00:00:01]} 2. c4 {[%clk
00:03:04]} e6 {[%clk 00:03:05]} 3. g3 {[%clk 00:03:05]} Bb4+ {[%clk 00:03:05]}
{[%emt 00:00:01]} 4. Bd2 {[%clk 00:03:06]} Bxd2+ {[%clk 00:03:06]} 5. Qxd2
{[%clk 00:03:07]} {[%emt 00:00:01]} O-O {[%clk 00:03:07]} 6. Bg2 d5 7. Nf3
{[%clk 00:03:09]} {[%emt 00:00:02]} Nbd7 {[%clk 00:03:07]} {[%emt 00:00:04]} 8.
O-O {[%clk 00:03:09]} {[%emt 00:00:02]} c5 {[%clk 00:03:08]} 9. cxd5 {[%clk
00:03:04]} {[%emt 00:00:06]} Nxd5 {[%clk 00:03:08]} {[%emt 00:00:02]} 10. dxc5
{[%clk 00:02:58]} {[%emt 00:00:09]} Nxc5 {[%clk 00:03:09]} 11. Nc3 {[%clk
00:02:50]} {[%emt 00:00:10]} Nxc3 {[%clk 00:03:06]} {[%emt 00:00:05]} 12. Qxc3
{[%clk 00:02:51]} {[%emt 00:00:01]} b6 {[%clk 00:03:07]} {[%emt 00:00:01]} 13.
Rfd1 {[%clk 00:02:47]} {[%emt 00:00:05]} Qc7 {[%clk 00:03:05]} {[%emt
00:00:03]} 14. Rac1 {[%clk 00:02:24]} {[%emt 00:00:25]} Qe7 {[%clk 00:02:53]}
{[%emt 00:00:15]} 15. b4 {[%clk 00:02:09]} {[%emt 00:00:17]} Ne4 {[%clk
00:02:52]} {[%emt 00:00:03]} 16. Qe5 {[%clk 00:01:57]} {[%emt 00:00:15]} Bb7
{[%clk 00:02:50]} {[%emt 00:00:04]} 17. Rc7 {[%clk 00:01:55]} {[%emt 00:00:03]}
Qxb4 {[%clk 00:02:14]} {[%emt 00:00:38]} 18. Rxb7 {[%clk 00:01:55]} {[%emt
00:00:02]} Rfd8 {[%clk 00:02:13]} {[%emt 00:00:03]} 19. Rxd8+ {[%clk 00:01:29]}
{[%emt 00:00:28]} Rxd8 {[%clk 00:02:14]} 20. Qc7 {[%clk 00:01:23]} {[%emt
00:00:07]} Rf8 {[%clk 00:01:47]} {[%emt 00:00:29]} 21. Rb8 {[%clk 00:01:08]}
{[%emt 00:00:17]} Nf6 {[%clk 00:01:03]} {[%emt 00:00:47]} 22. Rxf8+ {[%clk
00:01:04]} {[%emt 00:00:06]} Qxf8 {[%clk 00:01:04]} {[%emt 00:00:01]} 23. Qxa7
{[%clk 00:01:04]} {[%emt 00:00:02]} Nd5 {[%clk 00:01:04]} {[%emt 00:00:01]} 24.
Nd4 {[%clk 00:00:56]} {[%emt 00:00:09]} Nc3 {[%clk 00:01:00]} {[%emt 00:00:06]}
25. Bf3 {[%clk 00:00:35]} {[%emt 00:00:24]} Qd8 {[%clk 00:00:57]} {[%emt
00:00:05]} 26. Nc6 {[%clk 00:00:33]} {[%emt 00:00:04]} Qe8 {[%clk 00:00:38]}
{[%emt 00:00:19]} 27. Qxb6 {[%clk 00:00:30]} {[%emt 00:00:07]} Nxa2 {[%clk
00:00:35]} {[%emt 00:00:05]} 28. Qd8 {[%clk 00:00:28]} {[%emt 00:00:04]} Qxd8
{[%clk 00:00:31]} {[%emt 00:00:05]} 29. Nxd8 {[%clk 00:00:29]} {[%emt
00:00:01]} Nb4 {[%clk 00:00:32]} 30. Nc6 {[%clk 00:00:29]} {[%emt 00:00:02]}
Nxc6 {[%clk 00:00:31]} {[%emt 00:00:03]} 31. Bxc6 {[%clk 00:00:30]} f6 {[%clk
00:00:31]} {[%emt 00:00:01]} 32. h4 {[%clk 00:00:30]} {[%emt 00:00:02]} Kf7
{[%clk 00:00:32]} 33. Kg2 {[%clk 00:00:31]} {[%emt 00:00:01]} Ke7 {[%clk
00:00:34]} 34. Be4 {[%clk 00:00:30]} {[%emt 00:00:03]} f5 {[%clk 00:00:35]} 35.
Bc2 {[%clk 00:00:31]} Kf6 {[%clk 00:00:37]} 36. Kf3 {[%clk 00:00:26]} {[%emt
00:00:06]} e5 {[%clk 00:00:36]} {[%emt 00:00:03]} 37. e4 {[%clk 00:00:26]}
{[%emt 00:00:02]} g6 {[%clk 00:00:38]} 38. Ke3 {[%clk 00:00:26]} {[%emt
00:00:02]} Ke6 {[%clk 00:00:33]} {[%emt 00:00:06]} 39. f3 {[%clk 00:00:25]}
{[%emt 00:00:04]} Kf6 {[%clk 00:00:34]} {[%emt 00:00:01]} 40. g4 {[%clk
00:00:18]} {[%emt 00:00:09]} h6 {[%clk 00:00:30]} {[%emt 00:00:05]} 41. exf5
{[%clk 00:00:19]} {[%emt 00:00:02]} gxf5 {[%clk 00:00:27]} {[%emt 00:00:05]} 42.
Bxf5 {[%clk 00:00:20]} {[%emt 00:00:02]} h5 {[%clk 00:00:26]} {[%emt 00:00:02]}
43. Ke4 {[%clk 00:00:21]} hxg4 {[%clk 00:00:26]} {[%emt 00:00:03]} 44. fxg4
{[%clk 00:00:22]} 1-0

[Event "Paul Kerese Mälestusfestival 2022 Välkturniir"]
[Site "Paul Kerese Mälestusfestival 2022 Kiirturniir"]
[Date "????.??.??"]
[Round "4.1"]
[White "Chukavin, Kirill"]
[Black "Agrest, Evgenij"]
[Result "1/2-1/2"]
[TimeControl "3 min + 2 sek iga käigu eest"]
[WhiteTitle "FM"]
[BlackTitle "GM"]
[WhiteElo "2280"]
[BlackElo "2574"]

1. e4 {[%clk 00:03:02]} {[%emt 00:00:01]} c6 {[%clk 00:03:02]} {[%emt
00:00:02]} 2. d4 {[%clk 00:03:03]} {[%emt 00:00:01]} d5 {[%clk 00:03:03]}
{[%emt 00:00:01]} 3. exd5 {[%clk 00:03:04]} {[%emt 00:00:01]} cxd5 {[%clk
00:03:03]} {[%emt 00:00:02]} 4. Bd3 {[%clk 00:03:05]} Nc6 {[%emt 00:00:02]} 5.
c3 Nf6 {[%clk 00:03:03]} {[%emt 00:00:01]} 6. Bf4 {[%clk 00:03:08]} Bg4 {[%clk
00:03:02]} {[%emt 00:00:03]} 7. Qb3 {[%clk 00:03:09]} Qd7 {[%clk 00:03:02]}
{[%emt 00:00:03]} 8. Nd2 {[%clk 00:03:11]} e6 {[%clk 00:03:01]} {[%emt
00:00:03]} 9. Ngf3 {[%clk 00:03:12]} {[%emt 00:00:01]} Bxf3 {[%clk 00:02:58]}
{[%emt 00:00:05]} 10. Nxf3 {[%clk 00:03:13]} Bd6 {[%clk 00:02:58]} {[%emt
00:00:02]} 11. Bg3 {[%clk 00:03:14]} {[%emt 00:00:01]} O-O {[%clk 00:02:50]}
{[%emt 00:00:09]} 12. Qc2 {[%clk 00:03:04]} {[%emt 00:00:13]} Rac8 {[%clk
00:02:21]} {[%emt 00:00:31]} 13. Qe2 {[%clk 00:03:04]} {[%emt 00:00:02]} Qc7
{[%clk 00:02:09]} {[%emt 00:00:14]} 14. O-O {[%clk 00:02:26]} {[%emt 00:00:40]}
Bxg3 {[%clk 00:02:09]} {[%emt 00:00:02]} 15. hxg3 {[%clk 00:02:27]} {[%emt
00:00:01]} Rfe8 {[%clk 00:02:09]} {[%emt 00:00:01]} 16. Rae1 {[%clk 00:02:18]}
{[%emt 00:00:11]} g6 {[%clk 00:02:10]} {[%emt 00:00:01]} 17. Qe3 {[%clk
00:01:52]} {[%emt 00:00:28]} Kg7 {[%clk 00:02:07]} {[%emt 00:00:05]} 18. Ne5
{[%clk 00:01:20]} {[%emt 00:00:34]} Nxe5 {[%clk 00:02:06]} {[%emt 00:00:03]} 19.
dxe5 {[%clk 00:01:19]} {[%emt 00:00:03]} Nd7 {[%clk 00:02:06]} {[%emt
00:00:01]} 20. g4 {[%clk 00:01:13]} {[%emt 00:00:08]} Qb6 {[%clk 00:01:58]}
{[%emt 00:00:10]} 21. Qd2 {[%clk 00:01:07]} {[%emt 00:00:08]} Red8 {[%clk
00:01:55]} {[%emt 00:00:05]} 22. g3 {[%clk 00:00:59]} {[%emt 00:00:10]} d4
{[%clk 00:01:37]} {[%emt 00:00:20]} 23. c4 {[%clk 00:00:55]} {[%emt 00:00:06]}
Nc5 {[%clk 00:01:36]} {[%emt 00:00:02]} 24. b3 {[%clk 00:00:48]} {[%emt
00:00:10]} a5 {[%clk 00:01:37]} {[%emt 00:00:02]} 25. Kg2 {[%clk 00:00:44]}
{[%emt 00:00:06]} Qb4 {[%clk 00:01:37]} {[%emt 00:00:02]} 26. Qd1 {[%clk
00:00:26]} {[%emt 00:00:19]} Qc3 {[%clk 00:01:36]} {[%emt 00:00:03]} 27. Bb1
{[%clk 00:00:28]} d3 {[%clk 00:01:35]} {[%emt 00:00:03]} 28. Rh1 {[%clk
00:00:27]} {[%emt 00:00:02]} d2 {[%clk 00:01:29]} {[%emt 00:00:08]} 29. Re3
{[%clk 00:00:29]} Qd4 {[%clk 00:01:29]} {[%emt 00:00:02]} 30. Rf3 {[%clk
00:00:25]} {[%emt 00:00:07]} Rd7 {[%clk 00:01:24]} {[%emt 00:00:07]} 31. Re3
{[%clk 00:00:20]} {[%emt 00:00:07]} h6 {[%clk 00:01:18]} {[%emt 00:00:08]} 32.
Bc2 {[%clk 00:00:22]} Rcd8 {[%clk 00:01:14]} {[%emt 00:00:07]} 33. Qf3 {[%clk
00:00:21]} {[%emt 00:00:03]} Kh7 {[%clk 00:00:50]} {[%emt 00:00:26]} 34. g5
{[%clk 00:00:17]} {[%emt 00:00:06]} h5 {[%clk 00:00:45]} {[%emt 00:00:06]} 35.
Bd1 {[%clk 00:00:18]} {[%emt 00:00:01]} Nd3 {[%clk 00:00:38]} {[%emt 00:00:09]}
36. Qf6 {[%clk 00:00:15]} {[%emt 00:00:05]} Ne1+ {[%clk 00:00:34]} {[%emt
00:00:07]} 37. Kf1 {[%clk 00:00:13]} {[%emt 00:00:04]} Kg8 {[%clk 00:00:33]}
{[%emt 00:00:03]} 38. Bxh5 {[%clk 00:00:10]} {[%emt 00:00:05]} Nc2 {[%clk
00:00:27]} {[%emt 00:00:08]} 39. Bd1 {[%clk 00:00:06]} {[%emt 00:00:06]} Nxe3+
{[%clk 00:00:27]} {[%emt 00:00:01]} 40. fxe3 {[%clk 00:00:08]} Qd3+ {[%clk
00:00:28]} 41. Kg2 {[%clk 00:00:06]} {[%emt 00:00:04]} Qe4+ {[%clk 00:00:29]}
42. Bf3 {[%clk 00:00:07]} {[%emt 00:00:01]} Qxf3+ {[%clk 00:00:26]} {[%emt
00:00:05]} 43. Kxf3 {[%clk 00:00:04]} {[%emt 00:00:05]} d1=Q+ {[%clk 00:00:26]}
{[%emt 00:00:02]} 44. Rxd1 {[%clk 00:00:05]} {[%emt 00:00:02]} Rxd1 {[%clk
00:00:27]} 45. Qe7 {[%clk 00:00:05]} {[%emt 00:00:02]} R8d2 {[%clk 00:00:25]}
{[%emt 00:00:04]} 46. Qxb7 {[%clk 00:00:05]} {[%emt 00:00:02]} Rf1+ {[%clk
00:00:20]} {[%emt 00:00:07]} 47. Ke4 {[%clk 00:00:06]} Rxa2 {[%clk 00:00:18]}
{[%emt 00:00:05]} 48. Qb5 {[%clk 00:00:03]} {[%emt 00:00:04]} Re1 {[%clk
00:00:16]} {[%emt 00:00:03]} 49. c5 {[%clk 00:00:04]} {[%emt 00:00:02]} Rc2
{[%clk 00:00:14]} {[%emt 00:00:04]} 50. Qxa5 {[%clk 00:00:04]} {[%emt
00:00:02]} Rec1 {[%clk 00:00:15]} 51. b4 {[%clk 00:00:04]} {[%emt 00:00:03]}
Rc4+ {[%clk 00:00:15]} {[%emt 00:00:01]} 52. Kf3 {[%clk 00:00:05]} {[%emt
00:00:01]} Rf1+ {[%clk 00:00:16]} {[%emt 00:00:01]} 53. Ke2 {[%clk 00:00:06]}
{[%emt 00:00:01]} Rfc1 {[%clk 00:00:17]} {[%emt 00:00:02]} 54. Qd8+ {[%clk
00:01:05]} {[%emt 00:00:22]} Kg7 {[%clk 00:00:15]} {[%emt 00:00:18]} 55. Qb6
{[%clk 00:00:31]} {[%emt 00:00:36]} R1c2+ {[%clk 00:00:13]} {[%emt 00:00:04]}
56. Kf3 {[%clk 00:00:31]} {[%emt 00:00:02]} Rc1 {[%clk 00:00:13]} {[%emt
00:00:02]} 57. Qb5 {[%clk 00:00:24]} {[%emt 00:00:09]} R4c2 {[%clk 00:00:11]}
{[%emt 00:00:03]} 58. Qd3 {[%clk 00:00:22]} {[%emt 00:00:04]} Rc3 {[%clk
00:00:12]} {[%emt 00:00:01]} 59. Qd2 {[%clk 00:00:18]} {[%emt 00:00:07]} R3c2
{[%clk 00:00:13]} 60. Qd3 {[%clk 00:00:19]} {[%emt 00:00:02]} Rc3 {[%clk
00:00:13]} {[%emt 00:00:02]} 61. Qd6 {[%clk 00:00:18]} {[%emt 00:00:02]} R3c2
{[%clk 00:00:14]} {[%emt 00:00:02]} 62. Qd3 {[%clk 00:00:08]} {[%emt 00:00:11]}
Rc3 {[%clk 00:00:15]} {[%emt 00:00:01]} 63. Qd2 {[%clk 00:00:06]} {[%emt
00:00:03]} R3c2 {[%clk 00:00:15]} {[%emt 00:00:03]} 64. Qd6 {[%clk 00:00:07]}
{[%emt 00:00:01]} Rc4 {[%clk 00:00:13]} {[%emt 00:00:04]} 65. Qb6 {[%clk
00:00:06]} {[%emt 00:00:03]} R4c2 {[%clk 00:00:13]} {[%emt 00:00:02]} 66. Qb5
{[%clk 00:00:05]} {[%emt 00:00:04]} Rc3 {[%clk 00:00:12]} {[%emt 00:00:03]} 67.
Ke4 {[%clk 00:00:04]} {[%emt 00:00:03]} Rc4+ {[%clk 00:00:12]} {[%emt
00:00:02]} 68. Kd3 {[%clk 00:00:04]} {[%emt 00:00:02]} R1c3+ {[%clk 00:00:12]}
{[%emt 00:00:02]} 69. Kd2 {[%clk 00:00:03]} {[%emt 00:00:03]} Rc2+ {[%clk
00:00:13]} {[%emt 00:00:01]} 70. Kd3 {[%clk 00:00:05]} R4c3+ {[%clk 00:00:14]}
{[%emt 00:00:02]} 71. Kd4 {[%clk 00:00:05]} {[%emt 00:00:01]} Rc1 {[%clk
00:00:14]} {[%emt 00:00:01]} 72. Ke4 {[%clk 00:00:05]} {[%emt 00:00:02]} Rc4+
{[%clk 00:00:15]} {[%emt 00:00:01]} 1/2-1/2

[Event "Paul Kerese Mälestusfestival 2022 Välkturniir"]
[Site "Paul Kerese Mälestusfestival 2022 Kiirturniir"]
[Date "????.??.??"]
[Round "4.2"]
[White "Maiorov, Nikita"]
[Black "Golubovskis, Maksims"]
[Result "1-0"]
[TimeControl "3 min + 2 sek iga käigu eest"]
[WhiteTitle "GM"]
[WhiteElo "2417"]
[BlackElo "2163"]

1. d4 {[%clk 00:03:02]} {[%emt 00:00:01]} Nf6 {[%clk 00:03:04]} 2. c4 {[%clk
00:03:03]} {[%emt 00:00:02]} e6 {[%clk 00:03:02]} {[%emt 00:00:04]} 3. Nf3
{[%clk 00:03:04]} {[%emt 00:00:01]} b6 {[%clk 00:02:59]} {[%emt 00:00:05]} 4.
g3 {[%clk 00:03:03]} {[%emt 00:00:02]} Ba6 {[%clk 00:02:59]} {[%emt 00:00:03]}
5. Qa4 {[%clk 00:03:03]} {[%emt 00:00:02]} c5 {[%clk 00:02:48]} {[%emt
00:00:12]} 6. Bg2 {[%clk 00:02:58]} {[%emt 00:00:06]} Bb7 {[%clk 00:02:50]} 7.
dxc5 {[%clk 00:02:58]} {[%emt 00:00:03]} bxc5 {[%clk 00:02:44]} {[%emt
00:00:08]} 8. O-O {[%clk 00:02:57]} {[%emt 00:00:02]} Be7 {[%clk 00:02:45]}
{[%emt 00:00:01]} 9. Nc3 {[%clk 00:02:57]} {[%emt 00:00:02]} O-O {[%clk
00:02:45]} {[%emt 00:00:02]} 10. Bf4 {[%clk 00:02:51]} {[%emt 00:00:09]} d6
{[%clk 00:02:25]} {[%emt 00:00:23]} 11. Rfd1 {[%clk 00:02:50]} {[%emt
00:00:02]} Qb6 {[%clk 00:02:26]} {[%emt 00:00:01]} 12. Rab1 {[%clk 00:02:49]}
{[%emt 00:00:02]} Na6 {[%clk 00:02:18]} {[%emt 00:00:11]} 13. a3 {[%clk
00:02:42]} {[%emt 00:00:09]} Bc6 {[%clk 00:02:09]} {[%emt 00:00:11]} 14. Qc2
{[%clk 00:02:40]} {[%emt 00:00:03]} e5 {[%clk 00:01:58]} {[%emt 00:00:14]} 15.
Bg5 {[%clk 00:02:37]} {[%emt 00:00:04]} Rfd8 {[%clk 00:01:39]} {[%emt
00:00:22]} 16. Nh4 {[%clk 00:02:31]} {[%emt 00:00:08]} Bxg2 {[%clk 00:01:35]}
{[%emt 00:00:06]} 17. Kxg2 {[%clk 00:02:30]} {[%emt 00:00:02]} Qc6+ {[%clk
00:01:23]} {[%emt 00:00:15]} 18. Kg1 {[%clk 00:02:29]} {[%emt 00:00:02]} g6
{[%clk 00:01:03]} {[%emt 00:00:23]} 19. Ng2 {[%clk 00:02:25]} {[%emt 00:00:06]}
Nc7 {[%clk 00:00:59]} {[%emt 00:00:07]} 20. Ne3 {[%clk 00:02:05]} {[%emt
00:00:21]} Kg7 {[%clk 00:00:54]} {[%emt 00:00:08]} 21. Bxf6+ {[%clk 00:02:01]}
{[%emt 00:00:06]} Bxf6 {[%clk 00:00:54]} {[%emt 00:00:01]} 22. Ned5 {[%clk
00:01:54]} {[%emt 00:00:09]} Nxd5 {[%clk 00:00:43]} {[%emt 00:00:14]} 23. Nxd5
{[%clk 00:01:54]} {[%emt 00:00:02]} h5 {[%clk 00:00:31]} {[%emt 00:00:14]} 24.
h3 {[%clk 00:01:50]} {[%emt 00:00:05]} Bg5 {[%clk 00:00:29]} {[%emt 00:00:04]}
25. e4 {[%clk 00:01:32]} {[%emt 00:00:20]} a5 {[%clk 00:00:31]} 26. Nc3 {[%clk
00:01:26]} {[%emt 00:00:08]} h4 {[%clk 00:00:26]} {[%emt 00:00:07]} 27. g4
{[%clk 00:01:17]} {[%emt 00:00:11]} Qd7 {[%clk 00:00:16]} {[%emt 00:00:13]} 28.
Nb5 {[%clk 00:01:11]} {[%emt 00:00:08]} Qe7 {[%clk 00:00:06]} {[%emt 00:00:13]}
29. Rd5 {[%clk 00:01:08]} {[%emt 00:00:03]} Ra6 {[%clk 00:00:07]} {[%emt
00:00:01]} 30. Rbd1 {[%clk 00:01:08]} {[%emt 00:00:02]} Kh8 {[%clk 00:00:08]}
{[%emt 00:00:01]} 31. Kg2 {[%clk 00:00:56]} {[%emt 00:00:13]} Bf4 {[%clk
00:00:10]} 32. Qd3 {[%clk 00:00:54]} {[%emt 00:00:04]} Rb6 {[%clk 00:00:11]}
{[%emt 00:00:02]} 33. Rxc5 {[%clk 00:00:51]} {[%emt 00:00:05]} Rdb8 {[%clk
00:00:08]} {[%emt 00:00:05]} 34. Rd5 {[%clk 00:00:51]} {[%emt 00:00:01]} f5
{[%clk 00:00:09]} {[%emt 00:00:02]} 35. exf5 {[%clk 00:00:49]} {[%emt
00:00:04]} e4 {[%clk 00:00:06]} {[%emt 00:00:05]} 36. Qd4+ {[%clk 00:00:48]}
{[%emt 00:00:02]} Be5 {[%clk 00:00:07]} {[%emt 00:00:01]} 37. Qxe4 {[%clk
00:00:44]} {[%emt 00:00:06]} Rf8 {[%clk 00:00:07]} {[%emt 00:00:02]} 38. fxg6
{[%clk 00:00:33]} {[%emt 00:00:13]} Rf4 {[%clk 00:00:08]} 39. Qe3 {[%clk
00:00:34]} {[%emt 00:00:02]} Rb8 {[%clk 00:00:05]} {[%emt 00:00:06]} 40. b3
{[%clk 00:00:29]} {[%emt 00:00:07]} Qf6 {[%clk 00:00:05]} {[%emt 00:00:02]} 41.
Nxd6 {[%clk 00:00:24]} {[%emt 00:00:06]} Bxd6 {[%clk 00:00:03]} {[%emt
00:00:05]} 42. Rxd6 {[%clk 00:00:25]} {[%emt 00:00:01]} Qg5 {[%clk 00:00:03]}
{[%emt 00:00:01]} 43. Rd8+ {[%clk 00:00:18]} {[%emt 00:00:08]} Rxd8 {[%clk
00:00:04]} {[%emt 00:00:02]} 44. Rxd8+ {[%clk 00:00:19]} Kg7 {[%clk 00:00:04]}
{[%emt 00:00:03]} 45. Rd7+ {[%clk 00:00:19]} {[%emt 00:00:01]} Kxg6 {[%clk
00:00:04]} {[%emt 00:00:02]} 46. Qe6+ {[%clk 00:00:19]} {[%emt 00:00:02]} Rf6
{[%clk 00:00:05]} {[%emt 00:00:02]} 47. Qg8+ {[%clk 00:00:19]} {[%emt
00:00:01]} 1-0

[Event "Paul Kerese Mälestusfestival 2022 Välkturniir"]
[Site "Paul Kerese Mälestusfestival 2022 Kiirturniir"]
[Date "????.??.??"]
[Round "4.3"]
[White "Teelem, Lauri"]
[Black "Bernotas, Arturs"]
[Result "1-0"]
[TimeControl "3 min + 2 sek iga käigu eest"]
[BlackTitle "FM"]
[WhiteElo "2012"]
[BlackElo "2382"]

1. d4 {[%clk 00:03:00]} {[%emt 00:00:05]} Nf6 {[%clk 00:02:59]} {[%emt
00:00:04]} 2. c4 {[%clk 00:02:59]} {[%emt 00:00:04]} e6 {[%clk 00:03:00]}
{[%emt 00:00:01]} 3. Nc3 {[%clk 00:03:00]} Bb4 {[%clk 00:02:59]} {[%emt
00:00:03]} 4. a3 {[%clk 00:03:01]} {[%emt 00:00:01]} Bxc3+ {[%clk 00:02:59]}
{[%emt 00:00:02]} 5. bxc3 {[%clk 00:03:02]} b6 {[%clk 00:02:57]} {[%emt
00:00:04]} 6. f3 {[%clk 00:03:02]} {[%emt 00:00:02]} d5 {[%clk 00:02:32]}
{[%emt 00:00:27]} 7. e3 {[%clk 00:03:02]} {[%emt 00:00:02]} O-O {[%clk
00:02:30]} {[%emt 00:00:04]} 8. Bd3 {[%clk 00:02:59]} {[%emt 00:00:05]} Ba6
{[%clk 00:02:27]} {[%emt 00:00:05]} 9. cxd5 {[%clk 00:02:56]} {[%emt 00:00:05]}
Bxd3 {[%clk 00:02:26]} {[%emt 00:00:03]} 10. Qxd3 {[%clk 00:02:57]} {[%emt
00:00:01]} exd5 {[%clk 00:02:21]} {[%emt 00:00:07]} 11. Ne2 {[%clk 00:02:57]}
{[%emt 00:00:02]} Re8 {[%clk 00:02:15]} {[%emt 00:00:07]} 12. O-O {[%clk
00:02:57]} {[%emt 00:00:02]} c5 {[%clk 00:02:07]} {[%emt 00:00:10]} 13. Ng3
{[%clk 00:02:56]} {[%emt 00:00:02]} Nc6 {[%clk 00:02:07]} {[%emt 00:00:03]} 14.
Ra2 {[%clk 00:02:56]} {[%emt 00:00:02]} Qd7 {[%clk 00:01:59]} {[%emt 00:00:11]}
15. Kh1 {[%clk 00:02:29]} {[%emt 00:00:28]} Rac8 {[%clk 00:01:58]} {[%emt
00:00:03]} 16. Raf2 {[%clk 00:02:28]} {[%emt 00:00:03]} Re6 {[%clk 00:01:39]}
{[%emt 00:00:21]} 17. Bb2 {[%clk 00:02:15]} {[%emt 00:00:15]} Rce8 {[%clk
00:01:35]} {[%emt 00:00:06]} 18. Re2 {[%clk 00:02:03]} {[%emt 00:00:13]} Na5
{[%clk 00:01:26]} {[%emt 00:00:12]} 19. Bc1 {[%clk 00:02:03]} {[%emt 00:00:02]}
Qa4 {[%clk 00:01:20]} {[%emt 00:00:07]} 20. e4 {[%clk 00:01:08]} {[%emt
00:00:58]} cxd4 {[%clk 00:01:19]} {[%emt 00:00:03]} 21. cxd4 {[%clk 00:01:06]}
{[%emt 00:00:04]} Qc4 {[%clk 00:01:18]} {[%emt 00:00:03]} 22. Qxc4 {[%clk
00:00:59]} {[%emt 00:00:08]} Nxc4 {[%clk 00:01:18]} {[%emt 00:00:02]} 23. e5
{[%clk 00:00:57]} {[%emt 00:00:04]} Nd7 {[%clk 00:01:18]} {[%emt 00:00:02]} 24.
f4 {[%clk 00:00:57]} {[%emt 00:00:02]} Rc6 {[%clk 00:01:15]} {[%emt 00:00:05]}
25. h3 {[%clk 00:00:43]} {[%emt 00:00:17]} Nf8 {[%clk 00:01:11]} {[%emt
00:00:07]} 26. f5 {[%clk 00:00:40]} {[%emt 00:00:05]} Na5 {[%clk 00:01:07]}
{[%emt 00:00:06]} 27. Kh2 {[%clk 00:00:26]} {[%emt 00:00:16]} Rec8 {[%clk
00:01:07]} {[%emt 00:00:02]} 28. Ree1 {[%clk 00:00:25]} {[%emt 00:00:03]} Nb3
{[%clk 00:01:05]} {[%emt 00:00:04]} 29. Be3 {[%clk 00:00:14]} {[%emt 00:00:12]}
Rc4 {[%clk 00:00:56]} {[%emt 00:00:11]} 30. Rf4 {[%clk 00:00:14]} {[%emt
00:00:02]} Ra4 {[%clk 00:00:32]} {[%emt 00:00:26]} 31. f6 {[%clk 00:00:10]}
{[%emt 00:00:06]} g6 {[%clk 00:00:31]} {[%emt 00:00:03]} 32. Rb1 {[%clk
00:00:09]} {[%emt 00:00:03]} Na5 {[%clk 00:00:30]} {[%emt 00:00:04]} 33. Ra1
{[%clk 00:00:09]} {[%emt 00:00:02]} Ne6 {[%clk 00:00:30]} {[%emt 00:00:02]} 34.
Ne2 {[%clk 00:00:10]} {[%emt 00:00:02]} Rc2 {[%clk 00:00:28]} {[%emt 00:00:04]}
35. Rf2 {[%clk 00:00:10]} {[%emt 00:00:02]} Nc4 {[%clk 00:00:22]} {[%emt
00:00:08]} 36. Bc1 {[%clk 00:00:10]} {[%emt 00:00:02]} b5 {[%clk 00:00:23]}
{[%emt 00:00:01]} 37. Rb1 {[%clk 00:00:09]} {[%emt 00:00:03]} a6 {[%clk
00:00:24]} 38. Nf4 {[%clk 00:00:09]} {[%emt 00:00:02]} Rxf2 {[%clk 00:00:24]}
{[%emt 00:00:02]} 39. Nxd5 {[%clk 00:00:09]} {[%emt 00:00:02]} Nxd4 {[%clk
00:00:20]} {[%emt 00:00:05]} 40. Bh6 {[%clk 00:00:09]} {[%emt 00:00:02]} Ne6
{[%clk 00:00:09]} {[%emt 00:00:14]} 41. Rd1 {[%clk 00:00:09]} {[%emt 00:00:01]}
Rf5 {[%clk 00:00:03]} {[%emt 00:00:08]} 42. Ne7+ {[%clk 00:00:10]} {[%emt
00:00:01]} Kh8 {[%clk 00:00:04]} {[%emt 00:00:02]} 43. Rd7 {[%clk 00:00:09]}
{[%emt 00:00:02]} Rh5 {[%clk 00:00:03]} {[%emt 00:00:03]} 44. Bg7+ {[%clk
00:00:08]} {[%emt 00:00:03]} Nxg7 {[%clk 00:00:03]} {[%emt 00:00:02]} 45. Rd8+
{[%clk 00:00:09]} 1-0